[Event "Early-Titled-Tuesday-Blitz-January-23-2024"]
[Site "Chess.com"]
[Date "2024.01.23"]
[Round "3"]
[White "InitiatingASC"]
[Black "AnaKuchava"]
[Result "1-0"]
[WhiteElo "2427"]
[BlackElo "2219"]
[TimeControl "180+1"]
[EndTime "8:27:16 PST"]
[Termination "InitiatingASC won on time"]

1. d4 {[%clk 0:02:58]} 1... d5 {[%clk 0:02:55.3]} 2. c4 {[%clk 0:02:55.4]} 2...
e6 {[%clk 0:02:54.6]} 3. cxd5 {[%clk 0:02:54.1]} 3... exd5 {[%clk 0:02:54]} 4.
Nc3 {[%clk 0:02:45.9]} 4... c6 {[%clk 0:02:54]} 5. Qc2 {[%clk 0:02:42.9]} 5...
Bd6 {[%clk 0:02:47.1]} 6. e3 {[%clk 0:02:40.3]} 6... Ne7 {[%clk 0:02:42.4]} 7.
Bd3 {[%clk 0:02:40.2]} 7... Be6 {[%clk 0:02:33.2]} 8. Nge2 {[%clk 0:02:38]} 8...
Qd7 {[%clk 0:02:29.5]} 9. Ng3 {[%clk 0:02:37.1]} 9... h5 {[%clk 0:02:11.5]} 10.
e4 {[%clk 0:02:16.5]} 10... Bxg3 {[%clk 0:01:43.2]} 11. hxg3 {[%clk 0:02:11.9]}
11... dxe4 {[%clk 0:01:43.1]} 12. Nxe4 {[%clk 0:02:11]} 12... Qxd4 {[%clk
0:01:39.1]} 13. Bd2 {[%clk 0:02:02]} 13... Nd7 {[%clk 0:01:25.7]} 14. Bc3 {[%clk
0:02:01]} 14... Qb6 {[%clk 0:01:00.4]} 15. Bxg7 {[%clk 0:01:57.6]} 15... Rg8
{[%clk 0:00:58.6]} 16. Nd6+ {[%clk 0:01:52.1]} 16... Kd8 {[%clk 0:00:57.8]} 17.
Bc3 {[%clk 0:01:49.7]} 17... Nc5 {[%clk 0:00:52]} 18. O-O-O {[%clk 0:01:41.1]}
18... Nxd3+ {[%clk 0:00:46.8]} 19. Qxd3 {[%clk 0:01:30.7]} 19... Kc7 {[%clk
0:00:43]} 20. Be5 {[%clk 0:01:25.3]} 20... Qc5+ {[%clk 0:00:40.4]} 21. Qc3
{[%clk 0:01:08.9]} 21... Qxc3+ {[%clk 0:00:38.9]} 22. bxc3 {[%clk 0:01:08.4]}
22... Kb6 {[%clk 0:00:32.9]} 23. Kb2 {[%clk 0:01:00.7]} 23... Nd5 {[%clk
0:00:21.9]} 24. Rb1 {[%clk 0:00:46.6]} 24... Ka6 {[%clk 0:00:16.4]} 25. Rxh5
{[%clk 0:00:43.4]} 25... Rad8 {[%clk 0:00:11.2]} 26. Ne4 {[%clk 0:00:28.5]}
26... Rg4 {[%clk 0:00:07.2]} 27. f3 {[%clk 0:00:23.6]} 27... Rg6 {[%clk
0:00:06.7]} 28. Bd4 {[%clk 0:00:22.4]} 28... Rdg8 {[%clk 0:00:03]} 29. Nc5+
{[%clk 0:00:21.9]} 1-0

[Event "Early-Titled-Tuesday-Blitz-January-23-2024"]
[Site "Chess.com"]
[Date "2024.01.23"]
[Round "3"]
[White "Valy02chess"]
[Black "KorolDimitriy75"]
[Result "0-1"]
[WhiteElo "2141"]
[BlackElo "2373"]
[TimeControl "180+1"]
[EndTime "8:27:17 PST"]
[Termination "KorolDimitriy75 won by checkmate"]

1. e4 {[%clk 0:03:00.9]} 1... c5 {[%clk 0:02:56.2]} 2. Nf3 {[%clk 0:02:45.9]}
2... d6 {[%clk 0:02:56.1]} 3. d4 {[%clk 0:02:30.7]} 3... cxd4 {[%clk 0:02:57]}
4. Nxd4 {[%clk 0:02:29]} 4... Nf6 {[%clk 0:02:57.5]} 5. Nc3 {[%clk 0:02:27.7]}
5... g6 {[%clk 0:02:58]} 6. Be3 {[%clk 0:02:18.4]} 6... Bg7 {[%clk 0:02:58.4]}
7. f3 {[%clk 0:02:04.5]} 7... O-O {[%clk 0:02:58.6]} 8. Qd2 {[%clk 0:02:03.8]}
8... Nc6 {[%clk 0:02:59]} 9. g4 {[%clk 0:02:02.8]} 9... Be6 {[%clk 0:02:58.3]}
10. Nxe6 {[%clk 0:01:55.5]} 10... fxe6 {[%clk 0:02:59.2]} 11. O-O-O {[%clk
0:01:55]} 11... Ne5 {[%clk 0:02:59.2]} 12. g5 {[%clk 0:01:51.1]} 12... Nxf3
{[%clk 0:02:39.1]} 13. Qg2 {[%clk 0:01:49]} 13... Nh5 {[%clk 0:02:09.8]} 14. Be2
{[%clk 0:01:48.2]} 14... Ne5 {[%clk 0:01:57]} 15. Bxh5 {[%clk 0:01:32.4]} 15...
gxh5 {[%clk 0:01:57.9]} 16. Qh3 {[%clk 0:01:32.5]} 16... Ng4 {[%clk 0:01:44.2]}
17. Bd4 {[%clk 0:01:31.4]} 17... Bxd4 {[%clk 0:01:26]} 18. Rxd4 {[%clk
0:01:27.8]} 18... e5 {[%clk 0:01:00]} 19. Rd2 {[%clk 0:00:54.6]} 19... Qe8
{[%clk 0:00:55.4]} 20. Nd5 {[%clk 0:00:47.1]} 20... Rc8 {[%clk 0:00:54.7]} 21.
Qb3 {[%clk 0:00:17.9]} 21... Kh8 {[%clk 0:00:37.6]} 22. Qxb7 {[%clk 0:00:16.9]}
22... e6 {[%clk 0:00:37.4]} 23. Nf6 {[%clk 0:00:14.4]} 23... Nxf6 {[%clk
0:00:32.5]} 24. gxf6 {[%clk 0:00:14.6]} 24... Rxf6 {[%clk 0:00:31.9]} 25. Rxd6
{[%clk 0:00:13.9]} 25... Rf2 {[%clk 0:00:31.3]} 26. c3 {[%clk 0:00:12.1]} 26...
Qf8 {[%clk 0:00:30.1]} 27. Rxe6 {[%clk 0:00:04.8]} 27... Qf4+ {[%clk 0:00:24.9]}
28. Kb1 {[%clk 0:00:02.8]} 28... Rd8 {[%clk 0:00:25]} 29. Rg1 {[%clk 0:00:01.2]}
29... Rf1+ {[%clk 0:00:24]} 30. Rxf1 {[%clk 0:00:01.6]} 30... Qxf1+ {[%clk
0:00:24.8]} 31. Kc2 {[%clk 0:00:02.2]} 31... Qd1# {[%clk 0:00:25.4]} 0-1

[Event "Early-Titled-Tuesday-Blitz-January-23-2024"]
[Site "Chess.com"]
[Date "2024.01.23"]
[Round "3"]
[White "RaugintaBulba"]
[Black "Rgoltsman"]
[Result "0-1"]
[WhiteElo "2470"]
[BlackElo "2281"]
[TimeControl "180+1"]
[EndTime "8:27:18 PST"]
[Termination "Rgoltsman won on time"]

1. d4 {[%clk 0:03:00.9]} 1... g6 {[%clk 0:02:52.8]} 2. c4 {[%clk 0:02:57.5]}
2... Bg7 {[%clk 0:02:53.3]} 3. Nc3 {[%clk 0:02:57.5]} 3... c5 {[%clk 0:02:53.7]}
4. e3 {[%clk 0:02:49.6]} 4... Nf6 {[%clk 0:02:51.8]} 5. Nf3 {[%clk 0:02:49.4]}
5... O-O {[%clk 0:02:46.8]} 6. Be2 {[%clk 0:02:44.6]} 6... cxd4 {[%clk
0:02:46.6]} 7. exd4 {[%clk 0:02:45.5]} 7... d5 {[%clk 0:02:46.8]} 8. O-O {[%clk
0:02:41.2]} 8... Nc6 {[%clk 0:02:43.6]} 9. h3 {[%clk 0:02:30.6]} 9... dxc4
{[%clk 0:02:30.6]} 10. Bxc4 {[%clk 0:02:31.5]} 10... Bf5 {[%clk 0:02:30.3]} 11.
Re1 {[%clk 0:02:15.3]} 11... Qb6 {[%clk 0:02:01.1]} 12. Bb3 {[%clk 0:01:34.5]}
12... Rad8 {[%clk 0:01:29.7]} 13. Be3 {[%clk 0:01:22.7]} 13... Na5 {[%clk
0:01:20.5]} 14. d5 {[%clk 0:01:11.5]} 14... Qa6 {[%clk 0:00:53]} 15. Bc5 {[%clk
0:01:00.6]} 15... e6 {[%clk 0:00:18.6]} 16. Bxf8 {[%clk 0:00:58.2]} 16... Bxf8
{[%clk 0:00:19]} 17. Qe2 {[%clk 0:00:37]} 17... Nxb3 {[%clk 0:00:16.7]} 18. Qxa6
{[%clk 0:00:33.7]} 18... bxa6 {[%clk 0:00:16.9]} 19. axb3 {[%clk 0:00:34.6]}
19... Nxd5 {[%clk 0:00:16.6]} 20. Nxd5 {[%clk 0:00:28.8]} 20... Rxd5 {[%clk
0:00:17.5]} 21. Rxa6 {[%clk 0:00:29]} 21... Bc5 {[%clk 0:00:18.1]} 22. Ra4
{[%clk 0:00:03.8]} 22... Bb6 {[%clk 0:00:16.5]} 23. Rc4 {[%clk 0:00:03.8]} 23...
Rb5 {[%clk 0:00:15.6]} 24. Rc2 {[%clk 0:00:01.7]} 24... Bxc2 {[%clk 0:00:12.5]}
0-1

[Event "Early-Titled-Tuesday-Blitz-January-23-2024"]
[Site "Chess.com"]
[Date "2024.01.23"]
[Round "3"]
[White "sokidze"]
[Black "ozates"]
[Result "1-0"]
[WhiteElo "2837"]
[BlackElo "2603"]
[TimeControl "180+1"]
[EndTime "8:27:19 PST"]
[Termination "sokidze won by resignation"]

1. d4 {[%clk 0:03:00.9]} 1... Nf6 {[%clk 0:02:59.3]} 2. c4 {[%clk 0:03:00.8]}
2... e6 {[%clk 0:02:59.6]} 3. Nf3 {[%clk 0:03:01.5]} 3... d5 {[%clk 0:03:00]} 4.
g3 {[%clk 0:03:02.3]} 4... dxc4 {[%clk 0:03:00.3]} 5. Bg2 {[%clk 0:03:03]} 5...
Bd7 {[%clk 0:03:01]} 6. Ne5 {[%clk 0:03:02.8]} 6... Bc6 {[%clk 0:03:01.5]} 7.
Nxc6 {[%clk 0:03:03.4]} 7... Nxc6 {[%clk 0:03:02.4]} 8. O-O {[%clk 0:03:04]}
8... Qd7 {[%clk 0:03:02.5]} 9. e3 {[%clk 0:03:04.3]} 9... h5 {[%clk 0:03:02.3]}
10. Nc3 {[%clk 0:03:01]} 10... h4 {[%clk 0:03:01.1]} 11. Qa4 {[%clk 0:02:59.4]}
11... Nd5 {[%clk 0:02:56.8]} 12. Qxc4 {[%clk 0:02:57.3]} 12... O-O-O {[%clk
0:02:55.3]} 13. Bd2 {[%clk 0:02:55.9]} 13... f5 {[%clk 0:02:55.3]} 14. Rfc1
{[%clk 0:02:54.5]} 14... hxg3 {[%clk 0:02:54.2]} 15. hxg3 {[%clk 0:02:54.7]}
15... g5 {[%clk 0:02:54.8]} 16. b4 {[%clk 0:02:48.9]} 16... Kb8 {[%clk 0:02:48]}
17. b5 {[%clk 0:02:43.4]} 17... Nce7 {[%clk 0:02:46.1]} 18. a4 {[%clk
0:01:51.1]} 18... f4 {[%clk 0:02:44.7]} 19. e4 {[%clk 0:01:37.2]} 19... Nb6
{[%clk 0:02:31.4]} 20. Qb3 {[%clk 0:01:25.9]} 20... Qxd4 {[%clk 0:02:19]} 21.
Rd1 {[%clk 0:01:10.6]} 21... Bg7 {[%clk 0:02:00.1]} 22. Be1 {[%clk 0:00:53]}
22... Qc5 {[%clk 0:01:53.9]} 23. a5 {[%clk 0:00:47.2]} 23... Nc4 {[%clk
0:01:52.5]} 24. Na4 {[%clk 0:00:43.3]} 24... Qe5 {[%clk 0:00:52.3]} 25. Bc3
{[%clk 0:00:31.5]} 25... Nxa5 {[%clk 0:00:41]} 26. Qb4 {[%clk 0:00:31.4]} 26...
Rxd1+ {[%clk 0:00:21.5]} 27. Rxd1 {[%clk 0:00:31.1]} 27... Nec6 {[%clk
0:00:20.7]} 28. bxc6 {[%clk 0:00:30.7]} 28... Nxc6 {[%clk 0:00:21.1]} 29. Qb2
{[%clk 0:00:27.6]} 29... fxg3 {[%clk 0:00:15.8]} 30. Bxe5 {[%clk 0:00:26.8]}
30... Bxe5 {[%clk 0:00:15.9]} 31. Qb5 {[%clk 0:00:25.3]} 31... gxf2+ {[%clk
0:00:12.8]} 32. Kf1 {[%clk 0:00:25.3]} 32... g4 {[%clk 0:00:11.3]} 33. Nc5
{[%clk 0:00:24.7]} 1-0

[Event "Early-Titled-Tuesday-Blitz-January-23-2024"]
[Site "Chess.com"]
[Date "2024.01.23"]
[Round "3"]
[White "ChessLebaneseSalah"]
[Black "FMVolodymyrSakun"]
[Result "1-0"]
[WhiteElo "2401"]
[BlackElo "2557"]
[TimeControl "180+1"]
[EndTime "8:27:19 PST"]
[Termination "ChessLebaneseSalah won on time"]

1. e4 {[%clk 0:03:00.9]} 1... d6 {[%clk 0:02:58.7]} 2. Nf3 {[%clk 0:03:00.5]}
2... g6 {[%clk 0:02:56.3]} 3. d4 {[%clk 0:03:00]} 3... Bg7 {[%clk 0:02:56.2]} 4.
Nc3 {[%clk 0:03:00.4]} 4... Nf6 {[%clk 0:02:56.1]} 5. Bd3 {[%clk 0:02:57.1]}
5... c6 {[%clk 0:02:54.7]} 6. Be3 {[%clk 0:02:56.5]} 6... O-O {[%clk 0:02:48.9]}
7. Qd2 {[%clk 0:02:55.5]} 7... b5 {[%clk 0:02:48.3]} 8. O-O {[%clk 0:02:48.9]}
8... b4 {[%clk 0:02:45.1]} 9. Ne2 {[%clk 0:02:47.5]} 9... a5 {[%clk 0:02:42]}
10. a3 {[%clk 0:02:42.3]} 10... bxa3 {[%clk 0:02:15.1]} 11. Rxa3 {[%clk
0:02:41.8]} 11... d5 {[%clk 0:01:15.2]} 12. Ng3 {[%clk 0:02:23.2]} 12... dxe4
{[%clk 0:00:42.2]} 13. Nxe4 {[%clk 0:02:19.1]} 13... Nd5 {[%clk 0:00:24.5]} 14.
Bh6 {[%clk 0:02:13.4]} 14... Bg4 {[%clk 0:00:20.2]} 15. Ne5 {[%clk 0:02:02.6]}
15... Bf5 {[%clk 0:00:15.1]} 16. Rfa1 {[%clk 0:01:58.8]} 16... Nb4 {[%clk
0:00:14.3]} 17. Bxg7 {[%clk 0:01:43.2]} 17... Kxg7 {[%clk 0:00:13.4]} 18. Qc3
{[%clk 0:01:02.8]} 18... Nxd3 {[%clk 0:00:12.5]} 19. cxd3 {[%clk 0:00:57.2]}
19... Qd5 {[%clk 0:00:09.9]} 20. Rxa5 {[%clk 0:00:52.4]} 20... Rxa5 {[%clk
0:00:09.1]} 21. Rxa5 {[%clk 0:00:53]} 21... Qe6 {[%clk 0:00:07.6]} 22. d5 {[%clk
0:00:46]} 22... cxd5 {[%clk 0:00:06.4]} 23. Nc5 {[%clk 0:00:39.8]} 23... Qf6
{[%clk 0:00:04.7]} 24. d4 {[%clk 0:00:35.8]} 24... e6 {[%clk 0:00:04.8]} 25.
Ncd7 {[%clk 0:00:30.7]} 25... Nxd7 {[%clk 0:00:04.9]} 26. Nxd7 {[%clk
0:00:31.6]} 26... Qh4 {[%clk 0:00:04.9]} 27. Nxf8 {[%clk 0:00:30.5]} 27... Kxf8
{[%clk 0:00:05.2]} 28. Ra8+ {[%clk 0:00:26.1]} 28... Kg7 {[%clk 0:00:05]} 29.
Qe3 {[%clk 0:00:24.9]} 29... Qf6 {[%clk 0:00:04.1]} 30. Qe5 {[%clk 0:00:24.4]}
30... h5 {[%clk 0:00:03]} 31. Rg8+ {[%clk 0:00:22.5]} 1-0

[Event "Early-Titled-Tuesday-Blitz-January-23-2024"]
[Site "Chess.com"]
[Date "2024.01.23"]
[Round "3"]
[White "tsaruk_maks"]
[Black "Manukyan_Artak"]
[Result "1-0"]
[WhiteElo "2762"]
[BlackElo "2508"]
[TimeControl "180+1"]
[EndTime "8:27:20 PST"]
[Termination "tsaruk_maks won by resignation"]

1. e4 {[%clk 0:03:00.9]} 1... c6 {[%clk 0:02:56.6]} 2. d3 {[%clk 0:02:59.8]}
2... d5 {[%clk 0:02:57.2]} 3. Nd2 {[%clk 0:02:58.8]} 3... Nf6 {[%clk 0:02:54.9]}
4. Ngf3 {[%clk 0:02:58.4]} 4... Bg4 {[%clk 0:02:54]} 5. h3 {[%clk 0:02:58.3]}
5... Bxf3 {[%clk 0:02:52.8]} 6. Qxf3 {[%clk 0:02:58.2]} 6... e5 {[%clk
0:02:52.3]} 7. g3 {[%clk 0:02:44.1]} 7... d4 {[%clk 0:02:47]} 8. h4 {[%clk
0:02:42.2]} 8... Na6 {[%clk 0:02:44.8]} 9. a3 {[%clk 0:02:40.1]} 9... Bd6 {[%clk
0:02:39.1]} 10. Bh3 {[%clk 0:02:37.2]} 10... O-O {[%clk 0:02:38.6]} 11. Nc4
{[%clk 0:02:34.3]} 11... Bc7 {[%clk 0:02:35.9]} 12. Bg5 {[%clk 0:02:23.3]} 12...
h6 {[%clk 0:02:35.6]} 13. Bd2 {[%clk 0:02:02.5]} 13... b5 {[%clk 0:02:33.8]} 14.
g4 {[%clk 0:01:48.7]} 14... bxc4 {[%clk 0:02:32.6]} 15. g5 {[%clk 0:01:49.6]}
15... c3 {[%clk 0:02:19.7]} 16. bxc3 {[%clk 0:01:44.1]} 16... dxc3 {[%clk
0:02:17.3]} 17. Be3 {[%clk 0:01:37.8]} 17... Bb6 {[%clk 0:01:56.6]} 18. gxf6
{[%clk 0:01:18.9]} 18... Bxe3 {[%clk 0:01:55.4]} 19. fxe3 {[%clk 0:00:59.7]}
19... Qxf6 {[%clk 0:01:54.2]} 20. Qxf6 {[%clk 0:01:00.2]} 20... gxf6 {[%clk
0:01:54.4]} 21. d4 {[%clk 0:00:52.6]} 21... Rad8 {[%clk 0:01:42.1]} 22. Rd1
{[%clk 0:00:52]} 22... Rfe8 {[%clk 0:01:33.8]} 23. Bf5 {[%clk 0:00:49.6]} 23...
Nc7 {[%clk 0:01:18]} 24. Ke2 {[%clk 0:00:39.5]} 24... Nb5 {[%clk 0:01:11.6]} 25.
a4 {[%clk 0:00:38.4]} 25... Na3 {[%clk 0:01:07.8]} 26. Kd3 {[%clk 0:00:32.1]}
26... exd4 {[%clk 0:01:02.9]} 27. exd4 {[%clk 0:00:32.2]} 27... c5 {[%clk
0:00:57.1]} 28. d5 {[%clk 0:00:32.3]} 28... Rb8 {[%clk 0:00:50.3]} 29. Ra1
{[%clk 0:00:26.6]} 29... Nxc2 {[%clk 0:00:36.9]} 30. Kxc2 {[%clk 0:00:27.5]}
30... Rb4 {[%clk 0:00:37.2]} 31. d6 {[%clk 0:00:23.7]} 31... Rd8 {[%clk
0:00:31.4]} 32. d7 {[%clk 0:00:22]} 32... Kf8 {[%clk 0:00:23.3]} 33. Rhb1 {[%clk
0:00:19.3]} 33... Ke7 {[%clk 0:00:17.6]} 34. Kxc3 {[%clk 0:00:19.9]} 34... Rd4
{[%clk 0:00:16.1]} 35. Rb7 {[%clk 0:00:18.6]} 1-0

[Event "Early-Titled-Tuesday-Blitz-January-23-2024"]
[Site "Chess.com"]
[Date "2024.01.23"]
[Round "3"]
[White "gau_npukyputb"]
[Black "AttilaTurzo"]
[Result "1-0"]
[WhiteElo "2704"]
[BlackElo "2500"]
[TimeControl "180+1"]
[EndTime "8:27:20 PST"]
[Termination "gau_npukyputb won on time"]

1. g3 {[%clk 0:02:55.7]} 1... c5 {[%clk 0:02:56]} 2. Nf3 {[%clk 0:02:56.6]} 2...
g6 {[%clk 0:02:55]} 3. Bg2 {[%clk 0:02:57.5]} 3... Bg7 {[%clk 0:02:55.4]} 4. O-O
{[%clk 0:02:58.4]} 4... Nc6 {[%clk 0:02:55.9]} 5. c4 {[%clk 0:02:58.6]} 5... e5
{[%clk 0:02:55.6]} 6. Nc3 {[%clk 0:02:58.9]} 6... Nge7 {[%clk 0:02:56]} 7. Rb1
{[%clk 0:02:59.5]} 7... O-O {[%clk 0:02:53.5]} 8. a3 {[%clk 0:03:00]} 8... a5
{[%clk 0:02:48.8]} 9. Ne1 {[%clk 0:03:00.2]} 9... d6 {[%clk 0:02:42.5]} 10. Nc2
{[%clk 0:03:00.1]} 10... Rb8 {[%clk 0:02:40.3]} 11. b4 {[%clk 0:02:59.6]} 11...
axb4 {[%clk 0:02:37.6]} 12. axb4 {[%clk 0:03:00.5]} 12... b6 {[%clk 0:02:36.3]}
13. d3 {[%clk 0:02:53.4]} 13... Be6 {[%clk 0:02:31.2]} 14. b5 {[%clk 0:02:53.4]}
14... Nd4 {[%clk 0:02:22.6]} 15. Ne3 {[%clk 0:02:53.6]} 15... Ndf5 {[%clk
0:02:19.2]} 16. Ned5 {[%clk 0:02:50.8]} 16... Nxd5 {[%clk 0:02:19.5]} 17. Nxd5
{[%clk 0:02:51.7]} 17... Ne7 {[%clk 0:02:18]} 18. Nxe7+ {[%clk 0:02:39.5]} 18...
Qxe7 {[%clk 0:02:18.3]} 19. Ra1 {[%clk 0:02:40.4]} 19... Qd7 {[%clk 0:02:13.7]}
20. Qb3 {[%clk 0:02:40.3]} 20... e4 {[%clk 0:02:00.5]} 21. Ra6 {[%clk
0:02:38.8]} 21... d5 {[%clk 0:01:56.8]} 22. Bf4 {[%clk 0:02:34.4]} 22... Rb7
{[%clk 0:01:50]} 23. Qa4 {[%clk 0:02:28.8]} 23... f5 {[%clk 0:01:47.3]} 24. cxd5
{[%clk 0:02:27.3]} 24... Bxd5 {[%clk 0:01:46.4]} 25. dxe4 {[%clk 0:02:27.7]}
25... fxe4 {[%clk 0:01:39]} 26. Bxe4 {[%clk 0:02:27.6]} 26... Bxe4 {[%clk
0:01:25]} 27. Qxe4 {[%clk 0:02:27.1]} 27... Kh8 {[%clk 0:01:25.4]} 28. Qc6
{[%clk 0:02:22.5]} 28... g5 {[%clk 0:00:54.4]} 29. Qxd7 {[%clk 0:02:09.6]} 29...
Rxd7 {[%clk 0:00:54.2]} 30. Bxg5 {[%clk 0:02:10.2]} 30... Rb7 {[%clk 0:00:34.2]}
31. Be3 {[%clk 0:01:57.8]} 31... Rc8 {[%clk 0:00:22.1]} 32. Rc1 {[%clk
0:01:56.4]} 32... c4 {[%clk 0:00:22.4]} 33. Rxb6 {[%clk 0:01:50.4]} 33... Rxb6
{[%clk 0:00:21.8]} 34. Bxb6 {[%clk 0:01:51.3]} 34... c3 {[%clk 0:00:22.4]} 35.
Rc2 {[%clk 0:01:48.7]} 35... Rb8 {[%clk 0:00:22.1]} 36. Ba5 {[%clk 0:01:49]}
36... Rxb5 {[%clk 0:00:22.3]} 37. Bxc3 {[%clk 0:01:48.8]} 37... Kg8 {[%clk
0:00:16.6]} 38. Bxg7 {[%clk 0:01:47.7]} 38... Kxg7 {[%clk 0:00:17.5]} 39. Kg2
{[%clk 0:01:48.3]} 39... h5 {[%clk 0:00:17.4]} 40. f4 {[%clk 0:01:48.3]} 40...
Kg6 {[%clk 0:00:17.5]} 41. e4 {[%clk 0:01:48]} 41... Rb4 {[%clk 0:00:17.4]} 42.
Re2 {[%clk 0:01:48.6]} 42... Kf6 {[%clk 0:00:17.1]} 43. h3 {[%clk 0:01:47.1]}
43... Rb3 {[%clk 0:00:15.4]} 44. e5+ {[%clk 0:01:47.4]} 44... Ke6 {[%clk
0:00:15.3]} 45. g4 {[%clk 0:01:46.9]} 45... h4 {[%clk 0:00:15.2]} 46. f5+ {[%clk
0:01:47]} 46... Ke7 {[%clk 0:00:15.6]} 47. e6 {[%clk 0:01:47.2]} 47... Rg3+
{[%clk 0:00:15.6]} 48. Kh2 {[%clk 0:01:47.9]} 48... Rf3 {[%clk 0:00:16]} 49. Rg2
{[%clk 0:01:47.5]} 49... Rf1 {[%clk 0:00:13.9]} 50. Rd2 {[%clk 0:01:43.8]} 50...
Rf3 {[%clk 0:00:11.3]} 51. Rd7+ {[%clk 0:01:41.9]} 51... Kf6 {[%clk 0:00:10.9]}
52. g5+ {[%clk 0:01:38.3]} 52... Kxg5 {[%clk 0:00:09.2]} 53. Rf7 {[%clk
0:01:37.4]} 53... Kf4 {[%clk 0:00:07.8]} 54. e7 {[%clk 0:01:36.2]} 54... Re3
{[%clk 0:00:06.2]} 55. Kg2 {[%clk 0:01:35.2]} 55... Re2+ {[%clk 0:00:05]} 56.
Kf1 {[%clk 0:01:35.7]} 56... Kf3 {[%clk 0:00:04.6]} 57. f6 {[%clk 0:01:31.3]}
1-0

[Event "Early-Titled-Tuesday-Blitz-January-23-2024"]
[Site "Chess.com"]
[Date "2024.01.23"]
[Round "3"]
[White "SharapovEvgeny"]
[Black "Pastore1978"]
[Result "1-0"]
[WhiteElo "2518"]
[BlackElo "2285"]
[TimeControl "180+1"]
[EndTime "8:27:20 PST"]
[Termination "SharapovEvgeny won on time"]

1. e4 {[%clk 0:03:00]} 1... e5 {[%clk 0:02:58.4]} 2. Nf3 {[%clk 0:02:59.9]} 2...
Nc6 {[%clk 0:02:58.3]} 3. Bb5 {[%clk 0:03:00.1]} 3... a6 {[%clk 0:02:57.3]} 4.
Ba4 {[%clk 0:03:00.1]} 4... Nf6 {[%clk 0:02:57.5]} 5. d3 {[%clk 0:03:00.2]} 5...
b5 {[%clk 0:02:54.8]} 6. Bb3 {[%clk 0:03:00]} 6... Be7 {[%clk 0:02:50.6]} 7. a4
{[%clk 0:02:59.6]} 7... Bb7 {[%clk 0:02:49.9]} 8. Nc3 {[%clk 0:02:59.1]} 8... b4
{[%clk 0:02:48.4]} 9. Nd5 {[%clk 0:02:59]} 9... Bd6 {[%clk 0:02:39.5]} 10. Bg5
{[%clk 0:02:56.3]} 10... h6 {[%clk 0:02:37.5]} 11. Nxf6+ {[%clk 0:02:46.5]}
11... gxf6 {[%clk 0:02:38.4]} 12. Bh4 {[%clk 0:02:46.5]} 12... Be7 {[%clk
0:02:33.7]} 13. O-O {[%clk 0:02:45.6]} 13... Na5 {[%clk 0:02:26.2]} 14. Ba2
{[%clk 0:02:43.8]} 14... b3 {[%clk 0:02:15.2]} 15. cxb3 {[%clk 0:02:42.5]} 15...
c5 {[%clk 0:02:15.4]} 16. Bg3 {[%clk 0:02:36.2]} 16... Nc6 {[%clk 0:02:09.3]}
17. b4 {[%clk 0:02:35.8]} 17... Nxb4 {[%clk 0:02:06]} 18. Bc4 {[%clk 0:02:35.3]}
18... d5 {[%clk 0:01:49.6]} 19. exd5 {[%clk 0:02:34.8]} 19... Bxd5 {[%clk
0:01:50.5]} 20. Nh4 {[%clk 0:02:27]} 20... Bxc4 {[%clk 0:01:18.1]} 21. dxc4
{[%clk 0:02:26.8]} 21... Qxd1 {[%clk 0:01:19]} 22. Raxd1 {[%clk 0:02:26.2]}
22... Rd8 {[%clk 0:01:19.5]} 23. Rxd8+ {[%clk 0:02:23.6]} 23... Kxd8 {[%clk
0:01:02.9]} 24. Rd1+ {[%clk 0:02:23]} 24... Kc7 {[%clk 0:01:02.7]} 25. Nf5
{[%clk 0:02:22.7]} 25... Bf8 {[%clk 0:00:57]} 26. f4 {[%clk 0:02:22.4]} 26...
Nc6 {[%clk 0:00:43.1]} 27. fxe5 {[%clk 0:02:18.7]} 27... fxe5 {[%clk 0:00:44]}
28. Rd5 {[%clk 0:02:10.5]} 28... f6 {[%clk 0:00:43.6]} 29. Bh4 {[%clk
0:02:07.1]} 29... Be7 {[%clk 0:00:34.4]} 30. Nxe7 {[%clk 0:02:04.1]} 30... Nxe7
{[%clk 0:00:35.3]} 31. Bxf6 {[%clk 0:01:58.4]} 31... Nxd5 {[%clk 0:00:29.5]} 32.
Bxh8 {[%clk 0:01:58.2]} 32... Ne3 {[%clk 0:00:19]} 33. Bxe5+ {[%clk 0:01:56.8]}
33... Kc6 {[%clk 0:00:19.1]} 34. b3 {[%clk 0:01:53.7]} 34... Nc2 {[%clk
0:00:12.8]} 35. Kf2 {[%clk 0:01:49.3]} 35... Nb4 {[%clk 0:00:10.3]} 36. Ke2
{[%clk 0:01:45.3]} 36... Nc2 {[%clk 0:00:09.5]} 37. g4 {[%clk 0:01:42.7]} 37...
Kd7 {[%clk 0:00:05.5]} 38. Bf4 {[%clk 0:01:40.2]} 38... Nd4+ {[%clk 0:00:04.2]}
39. Ke3 {[%clk 0:01:37.6]} 39... Nxb3 {[%clk 0:00:05.1]} 40. Bxh6 {[%clk
0:01:37.1]} 40... Na5 {[%clk 0:00:05.8]} 41. Kd3 {[%clk 0:01:36.3]} 41... Ke6
{[%clk 0:00:05.1]} 42. Be3 {[%clk 0:01:34.1]} 42... Nb7 {[%clk 0:00:04.8]} 43.
h4 {[%clk 0:01:33.7]} 43... Kf6 {[%clk 0:00:05.2]} 44. h5 {[%clk 0:01:33.7]}
44... Kg7 {[%clk 0:00:02.7]} 45. g5 {[%clk 0:01:33.7]} 45... Kh7 {[%clk
0:00:03]} 46. g6+ {[%clk 0:01:33.8]} 46... Kg7 {[%clk 0:00:03.2]} 47. Bf4 {[%clk
0:01:34.4]} 47... Na5 {[%clk 0:00:02.7]} 48. Be3 {[%clk 0:01:29.4]} 48... Nb7
{[%clk 0:00:02.5]} 49. Ke4 {[%clk 0:01:30]} 49... Nd6+ {[%clk 0:00:01.8]} 50.
Kd5 {[%clk 0:01:28.6]} 50... Nf5 {[%clk 0:00:02.3]} 51. Bxc5 {[%clk 0:01:28.5]}
51... Ng3 {[%clk 0:00:02.9]} 52. Bd4+ {[%clk 0:01:27.5]} 52... Kh6 {[%clk
0:00:02.8]} 53. g7 {[%clk 0:01:27.7]} 53... Kh7 {[%clk 0:00:03.4]} 54. c5 {[%clk
0:01:27.3]} 54... Nxh5 {[%clk 0:00:03.4]} 55. c6 {[%clk 0:01:27.3]} 55... Nf4+
{[%clk 0:00:03.9]} 56. Kd6 {[%clk 0:01:27.5]} 56... Ng6 {[%clk 0:00:01.6]} 57.
c7 {[%clk 0:01:26.8]} 1-0